[Event "Titled Tuesday Blitz June 6 Late 2023"]
[White "Streltsov, Alexey"]
[Black "Kleiman, Jake"]
[WhiteFideId "24104434"]
[BlackFideId "2020041"]
[WhiteElo "2567"]
[BlackElo "2680"]
[Result "0-1"]
[Round "10"]
[TimeControl "180+2"]
[Date "2023.06.07"]
[WhiteClock "0:00:43"]
[BlackClock "0:00:07"]
[Board "42"]

1. d4 {[%clk 0:03:00]}  Nf6 {[%clk 0:02:57]} 2. Nc3 {[%clk 0:03:01]}  d5 {[%clk 0:02:56]} 3. Bf4 {[%clk 0:03:01]}  e6 {[%clk 0:02:55]} 4. Nb5 {[%clk 0:03:01]}  Bd6 {[%clk 0:02:55]} 5. Nxd6+ {[%clk 0:03:00]}  cxd6 {[%clk 0:02:56]} 6. e3 {[%clk 0:03:01]}  O-O {[%clk 0:02:56]} 7. Nf3 {[%clk 0:03:02]}  Nc6 {[%clk 0:02:56]} 8. Be2 {[%clk 0:03:02]}  Re8 {[%clk 0:02:55]} 9. O-O {[%clk 0:03:02]}  h6 {[%clk 0:02:56]} 10. c3 {[%clk 0:03:01]}  e5 {[%clk 0:02:55]} 11. Bg3 {[%clk 0:03:01]}  Ne4 {[%clk 0:02:51]} 12. Qb3 {[%clk 0:02:59]}  Nxg3 {[%clk 0:02:10]} 13. hxg3 {[%clk 0:02:51]}  e4 {[%clk 0:01:55]} 14. Nd2 {[%clk 0:02:50]}  Qg5 {[%clk 0:01:55]} 15. c4 {[%clk 0:02:32]}  Nxd4 {[%clk 0:01:49]} 16. Qd1 {[%clk 0:02:18]}  Nxe2+ {[%clk 0:01:39]} 17. Qxe2 {[%clk 0:02:19]}  Bg4 {[%clk 0:01:39]} 18. Qe1 {[%clk 0:02:19]}  Rac8 {[%clk 0:01:31]} 19. cxd5 {[%clk 0:02:11]}  Qxd5 {[%clk 0:01:06]} 20. Nb3 {[%clk 0:02:11]}  Rc2 {[%clk 0:01:06]} 21. Qb1 {[%clk 0:01:54]}  Rec8 {[%clk 0:00:57]} 22. Nd4 {[%clk 0:01:52]}  Rd2 {[%clk 0:00:53]} 23. Rc1 {[%clk 0:01:51]}  Rxc1+ {[%clk 0:00:50]} 24. Qxc1 {[%clk 0:01:51]}  Rd1+ {[%clk 0:00:50]} 25. Qxd1 {[%clk 0:01:52]}  Bxd1 {[%clk 0:00:50]} 26. Rxd1 {[%clk 0:01:53]}  Qxa2 {[%clk 0:00:51]} 27. b3 {[%clk 0:01:53]}  g6 {[%clk 0:00:47]} 28. g4 {[%clk 0:01:51]}  Kg7 {[%clk 0:00:47]} 29. g3 {[%clk 0:01:51]}  a6 {[%clk 0:00:42]} 30. Kg2 {[%clk 0:01:51]}  b5 {[%clk 0:00:42]} 31. Rc1 {[%clk 0:01:52]}  a5 {[%clk 0:00:30]} 32. Nxb5 {[%clk 0:01:47]}  Qxb3 {[%clk 0:00:30]} 33. Nxd6 {[%clk 0:01:48]}  Qb4 {[%clk 0:00:25]} 34. Rc6 {[%clk 0:01:48]}  a4 {[%clk 0:00:25]} 35. Ne8+ {[%clk 0:01:48]}  Kf8 {[%clk 0:00:24]} 36. Nf6 {[%clk 0:01:48]}  Qb7 {[%clk 0:00:16]} 37. Rb6 {[%clk 0:01:45]}  Qa8 {[%clk 0:00:13]} 38. Nd7+ {[%clk 0:01:19]}  Ke7 {[%clk 0:00:13]} 39. Nc5 {[%clk 0:01:17]}  a3 {[%clk 0:00:13]} 40. Nb3 {[%clk 0:01:17]}  a2 {[%clk 0:00:13]} 41. Rb4 {[%clk 0:01:17]}  a1=Q {[%clk 0:00:12]} 42. Nxa1 {[%clk 0:01:16]}  Qxa1 {[%clk 0:00:13]} 43. Rxe4+ {[%clk 0:01:16]}  Kf6 {[%clk 0:00:14]} 44. Rf4+ {[%clk 0:01:16]}  Kg7 {[%clk 0:00:14]} 45. Rd4 {[%clk 0:01:11]}  Qe1 {[%clk 0:00:13]} 46. Rf4 {[%clk 0:01:10]}  Qe2 {[%clk 0:00:13]} 47. Rd4 {[%clk 0:01:10]}  Qb5 {[%clk 0:00:12]} 48. Rf4 {[%clk 0:01:08]}  Qd5+ {[%clk 0:00:12]} 49. Kg1 {[%clk 0:01:07]}  Qd2 {[%clk 0:00:12]} 50. Rd4 {[%clk 0:01:07]}  Qe2 {[%clk 0:00:12]} 51. Kg2 {[%clk 0:01:07]}  g5 {[%clk 0:00:11]} 52. Rb4 {[%clk 0:01:07]}  Qd3 {[%clk 0:00:11]} 53. Rd4 {[%clk 0:01:07]}  Qb5 {[%clk 0:00:11]} 54. Kg1 {[%clk 0:01:07]}  Qe5 {[%clk 0:00:11]} 55. Kg2 {[%clk 0:01:07]}  Qe6 {[%clk 0:00:12]} 56. Kg1 {[%clk 0:01:08]}  Kg6 {[%clk 0:00:11]} 57. Kg2 {[%clk 0:01:08]}  f5 {[%clk 0:00:12]} 58. gxf5+ {[%clk 0:01:09]}  Qxf5 {[%clk 0:00:12]} 59. g4 {[%clk 0:01:09]}  Qe6 {[%clk 0:00:12]} 60. Kg3 {[%clk 0:01:08]}  Qe5+ {[%clk 0:00:12]} 61. Kg2 {[%clk 0:01:09]}  Qc5 {[%clk 0:00:12]} 62. Kg3 {[%clk 0:01:09]}  Qc1 {[%clk 0:00:12]} 63. Kg2 {[%clk 0:01:10]}  Qe1 {[%clk 0:00:12]} 64. Re4 {[%clk 0:01:07]}  Qe2 {[%clk 0:00:11]} 65. Rd4 {[%clk 0:01:07]}  h5 {[%clk 0:00:10]} 66. Rd6+ {[%clk 0:01:08]}  Kg7 {[%clk 0:00:10]} 67. gxh5 {[%clk 0:01:06]}  Qg4+ {[%clk 0:00:10]} 68. Kf1 {[%clk 0:01:06]}  Qh3+ {[%clk 0:00:10]} 69. Kg1 {[%clk 0:01:04]}  Qxh5 {[%clk 0:00:10]} 70. Rd4 {[%clk 0:01:05]}  Qf3 {[%clk 0:00:10]} 71. Rb4 {[%clk 0:00:56]}  Kg6 {[%clk 0:00:10]} 72. Rb6+ {[%clk 0:00:56]}  Kh5 {[%clk 0:00:10]} 73. Rb5 {[%clk 0:00:54]}  Kh4 {[%clk 0:00:09]} 74. Rb8 {[%clk 0:00:52]}  Qg4+ {[%clk 0:00:08]} 75. Kh2 {[%clk 0:00:51]}  Qh3+ {[%clk 0:00:08]} 76. Kg1 {[%clk 0:00:51]}  Kg4 {[%clk 0:00:08]} 77. Rb4+ {[%clk 0:00:49]}  Kf3 {[%clk 0:00:07]} 78. e4 {[%clk 0:00:43]}  Qg2# {[%clk 0:00:07]} 0-1


[Site "https://www.chess.com"]

[Event "Titled Tuesday Blitz June 6 Late 2023"]
[White "Ozates, Tuna"]
[Black "Shuvalova, Polina"]
[WhiteFideId "6354521"]
[BlackFideId "24171760"]
[WhiteElo "2151"]
[BlackElo "2281"]
[Result "1-0"]
[Round "10"]
[TimeControl "180+2"]
[Date "2023.06.07"]
[WhiteClock "0:00:07"]
[BlackClock "0:00:10"]
[Board "44"]

1. e4 {[%clk 0:03:00]}  c6 {[%clk 0:02:58]} 2. Nf3 {[%clk 0:02:58]}  d5 {[%clk 0:02:59]} 3. d3 {[%clk 0:02:59]}  Bg4 {[%clk 0:02:59]} 4. h3 {[%clk 0:02:57]}  Bxf3 {[%clk 0:02:59]} 5. Qxf3 {[%clk 0:02:58]}  e6 {[%clk 0:02:59]} 6. g3 {[%clk 0:02:57]}  Nd7 {[%clk 0:03:00]} 7. Bg2 {[%clk 0:02:57]}  Bc5 {[%clk 0:02:57]} 8. O-O {[%clk 0:02:57]}  Ne7 {[%clk 0:02:58]} 9. c3 {[%clk 0:02:57]}  O-O {[%clk 0:02:57]} 10. d4 {[%clk 0:02:53]}  Bb6 {[%clk 0:02:57]} 11. Nd2 {[%clk 0:02:51]}  f5 {[%clk 0:02:56]} 12. exd5 {[%clk 0:02:49]}  exd5 {[%clk 0:02:56]} 13. Re1 {[%clk 0:02:45]}  Nf6 {[%clk 0:02:55]} 14. Qd3 {[%clk 0:02:38]}  Ne4 {[%clk 0:02:50]} 15. Nf3 {[%clk 0:02:38]}  Ng6 {[%clk 0:02:48]} 16. h4 {[%clk 0:02:25]}  h6 {[%clk 0:02:31]} 17. h5 {[%clk 0:02:18]}  Nh8 {[%clk 0:02:31]} 18. Ne5 {[%clk 0:02:13]}  Nf7 {[%clk 0:02:30]} 19. Ng6 {[%clk 0:02:08]}  Re8 {[%clk 0:02:30]} 20. Bf4 {[%clk 0:02:09]}  Bc7 {[%clk 0:02:28]} 21. f3 {[%clk 0:02:05]}  Bxf4 {[%clk 0:02:24]} 22. gxf4 {[%clk 0:02:01]}  Ned6 {[%clk 0:02:23]} 23. Kf2 {[%clk 0:01:49]}  Qf6 {[%clk 0:02:20]} 24. Re5 {[%clk 0:01:45]}  Nh8 {[%clk 0:02:08]} 25. Bh3 {[%clk 0:01:09]}  Nxg6 {[%clk 0:02:03]} 26. hxg6 {[%clk 0:01:09]}  Qh4+ {[%clk 0:01:55]} 27. Kg2 {[%clk 0:01:09]}  Qxf4 {[%clk 0:01:55]} 28. Rae1 {[%clk 0:01:09]}  Qg5+ {[%clk 0:01:51]} 29. Kh2 {[%clk 0:01:05]}  Qxg6 {[%clk 0:01:51]} 30. Rg1 {[%clk 0:00:53]}  Qf6 {[%clk 0:01:49]} 31. Qe3 {[%clk 0:00:50]}  Qf7 {[%clk 0:01:31]} 32. Qxh6 {[%clk 0:00:44]}  Rad8 {[%clk 0:00:59]} 33. Rg5 {[%clk 0:00:11]}  Re7 {[%clk 0:00:36]} 34. Bxf5 {[%clk 0:00:11]}  Rxe5 {[%clk 0:00:29]} 35. Qh7+ {[%clk 0:00:09]}  Kf8 {[%clk 0:00:30]} 36. dxe5 {[%clk 0:00:10]}  Nc4 {[%clk 0:00:12]} 37. e6 {[%clk 0:00:10]}  Qg8 {[%clk 0:00:12]} 38. e7+ {[%clk 0:00:10]}  Kf7 {[%clk 0:00:11]} 39. exd8=Q {[%clk 0:00:08]}  Qxd8 {[%clk 0:00:09]} 40. Qxg7+ {[%clk 0:00:07]}  Ke8 {[%clk 0:00:10]} 41. Bg6# {[%clk 0:00:07]} 1-0


[Site "https://www.chess.com"]

[Event "Titled Tuesday Blitz June 6 Late 2023"]
[White "laziestwin"]
[Black "Sargsyan, Anna M."]
[BlackFideId "13308130"]
[WhiteElo "2654"]
[BlackElo "2284"]
[Result "0-1"]
[Round "10"]
[TimeControl "180+2"]
[Date "2023.06.07"]
[WhiteClock "0:00:14"]
[BlackClock "0:01:13"]
[Board "45"]

1. d4 {[%clk 0:03:00]}  d5 {[%clk 0:02:56]} 2. c4 {[%clk 0:03:01]}  c6 {[%clk 0:02:57]} 3. Nc3 {[%clk 0:03:01]}  Nf6 {[%clk 0:02:58]} 4. cxd5 {[%clk 0:03:02]}  cxd5 {[%clk 0:02:58]} 5. f3 {[%clk 0:03:02]}  Bf5 {[%clk 0:02:55]} 6. g4 {[%clk 0:03:01]}  Bg6 {[%clk 0:02:55]} 7. h4 {[%clk 0:03:01]}  h6 {[%clk 0:02:55]} 8. g5 {[%clk 0:03:02]}  hxg5 {[%clk 0:02:55]} 9. Bxg5 {[%clk 0:03:01]}  e6 {[%clk 0:02:52]} 10. e4 {[%clk 0:02:59]}  dxe4 {[%clk 0:02:49]} 11. fxe4 {[%clk 0:03:00]}  Qb6 {[%clk 0:02:48]} 12. Bb5+ {[%clk 0:02:55]}  Nbd7 {[%clk 0:02:45]} 13. Bxf6 {[%clk 0:02:55]}  gxf6 {[%clk 0:02:46]} 14. Bxd7+ {[%clk 0:02:43]}  Kxd7 {[%clk 0:02:46]} 15. Nge2 {[%clk 0:02:40]}  Bd6 {[%clk 0:02:43]} 16. Qa4+ {[%clk 0:02:24]}  Ke7 {[%clk 0:02:43]} 17. O-O-O {[%clk 0:02:19]}  Rac8 {[%clk 0:02:40]} 18. Kb1 {[%clk 0:02:11]}  Qc6 {[%clk 0:02:37]} 19. Qc2 {[%clk 0:02:06]}  b5 {[%clk 0:02:36]} 20. a3 {[%clk 0:01:58]}  a5 {[%clk 0:02:30]} 21. h5 {[%clk 0:01:56]}  Rxh5 {[%clk 0:02:25]} 22. d5 {[%clk 0:01:44]}  Qb6 {[%clk 0:02:14]} 23. Rxh5 {[%clk 0:01:35]}  Bxh5 {[%clk 0:02:14]} 24. dxe6 {[%clk 0:01:35]}  fxe6 {[%clk 0:01:39]} 25. Nd5+ {[%clk 0:01:32]}  exd5 {[%clk 0:01:39]} 26. Qxc8 {[%clk 0:01:32]}  Bxe2 {[%clk 0:01:39]} 27. Rh1 {[%clk 0:01:32]}  Bd3+ {[%clk 0:01:35]} 28. Ka1 {[%clk 0:01:32]}  Bxe4 {[%clk 0:01:34]} 29. Re1 {[%clk 0:00:32]}  Qc7 {[%clk 0:01:33]} 30. Qa8 {[%clk 0:00:28]}  Be5 {[%clk 0:01:31]} 31. Rg1 {[%clk 0:00:16]}  Bxb2+ {[%clk 0:01:17]} 32. Ka2 {[%clk 0:00:17]}  Qc4+ {[%clk 0:01:17]} 33. Kxb2 {[%clk 0:00:17]}  Qd4+ {[%clk 0:01:18]} 34. Kb3 {[%clk 0:00:15]}  Qe3+ {[%clk 0:01:16]} 35. Kb2 {[%clk 0:00:14]}  Qf2+ {[%clk 0:01:14]} 36. Kb3 {[%clk 0:00:14]}  Qc2# {[%clk 0:01:13]} 0-1


[Site "https://www.chess.com"]

[Event "Titled Tuesday Blitz June 6 Late 2023"]
[White "Jaskolka, Tomasz"]
[Black "Schnaider, Ilan"]
[WhiteFideId "1170791"]
[BlackFideId "169013"]
[WhiteElo "2155"]
[BlackElo "2224"]
[Result "0-1"]
[Round "10"]
[TimeControl "180+2"]
[Date "2023.06.07"]
[WhiteClock "0:01:49"]
[BlackClock "0:02:10"]
[Board "50"]

1. e4 {[%clk 0:03:00]}  c5 {[%clk 0:02:55]} 2. Nf3 {[%clk 0:03:01]}  d6 {[%clk 0:02:56]} 3. b4 {[%clk 0:03:00]}  cxb4 {[%clk 0:02:51]} 4. d4 {[%clk 0:02:59]}  d5 {[%clk 0:02:47]} 5. exd5 {[%clk 0:02:55]}  Qxd5 {[%clk 0:02:44]} 6. c4 {[%clk 0:02:55]}  Qd8 {[%clk 0:02:36]} 7. Bb2 {[%clk 0:02:44]}  Nf6 {[%clk 0:02:34]} 8. Bd3 {[%clk 0:02:44]}  Bg4 {[%clk 0:02:28]} 9. h3 {[%clk 0:02:43]}  Bh5 {[%clk 0:02:25]} 10. Nbd2 {[%clk 0:02:41]}  e6 {[%clk 0:02:23]} 11. O-O {[%clk 0:02:41]}  Be7 {[%clk 0:02:23]} 12. Qa4+ {[%clk 0:02:35]}  Nbd7 {[%clk 0:02:22]} 13. d5 {[%clk 0:02:20]}  O-O {[%clk 0:02:15]} 14. dxe6 {[%clk 0:02:20]}  Nc5 {[%clk 0:02:15]} 15. exf7+ {[%clk 0:01:55]}  Bxf7 {[%clk 0:02:14]} 16. Qxb4 {[%clk 0:01:48]}  Nxd3 {[%clk 0:02:12]} 17. Qxb7 {[%clk 0:01:48]}  Rb8 {[%clk 0:02:10]} 18. Qe4 {[%clk 0:01:49]}  Nxe4 {[%clk 0:02:10]} 0-1


[Site "https://www.chess.com"]

[Event "Titled Tuesday Blitz June 6 Late 2023"]
[White "Ladan, Nicholas"]
[Black "Abrahamyan, Tatev"]
[WhiteFideId "30918855"]
[BlackFideId "13301918"]
[WhiteElo "2167"]
[BlackElo "2342"]
[Result "0-1"]
[Round "10"]
[TimeControl "180+2"]
[Date "2023.06.07"]
[WhiteClock "0:00:01"]
[BlackClock "0:01:32"]
[Board "51"]

1. d4 {[%clk 0:02:59]}  Nf6 {[%clk 0:02:59]} 2. Nf3 {[%clk 0:02:57]}  e6 {[%clk 0:03:00]} 3. Bf4 {[%clk 0:02:56]}  c5 {[%clk 0:02:58]} 4. e3 {[%clk 0:02:57]}  cxd4 {[%clk 0:02:58]} 5. exd4 {[%clk 0:02:57]}  d6 {[%clk 0:02:59]} 6. c3 {[%clk 0:02:56]}  b6 {[%clk 0:02:59]} 7. Nbd2 {[%clk 0:02:56]}  Bb7 {[%clk 0:03:00]} 8. Bd3 {[%clk 0:02:56]}  Nbd7 {[%clk 0:03:00]} 9. O-O {[%clk 0:02:57]}  Be7 {[%clk 0:03:01]} 10. a4 {[%clk 0:02:57]}  O-O {[%clk 0:03:01]} 11. a5 {[%clk 0:02:57]}  Qc7 {[%clk 0:03:01]} 12. a6 {[%clk 0:02:57]}  Bc6 {[%clk 0:03:01]} 13. h3 {[%clk 0:02:53]}  Rfe8 {[%clk 0:03:00]} 14. Re1 {[%clk 0:02:53]}  Bf8 {[%clk 0:02:59]} 15. Bh2 {[%clk 0:02:51]}  Rac8 {[%clk 0:02:58]} 16. Nf1 {[%clk 0:02:39]}  h6 {[%clk 0:02:53]} 17. Ne3 {[%clk 0:02:38]}  e5 {[%clk 0:02:52]} 18. dxe5 {[%clk 0:02:19]}  dxe5 {[%clk 0:02:53]} 19. Nf5 {[%clk 0:02:10]}  Rcd8 {[%clk 0:02:45]} 20. Bc4 {[%clk 0:01:57]}  Bxf3 {[%clk 0:02:19]} 21. Qb3 {[%clk 0:01:19]}  Nc5 {[%clk 0:02:12]} 22. Bxf7+ {[%clk 0:00:51]}  Qxf7 {[%clk 0:02:13]} 23. Qxf7+ {[%clk 0:00:52]}  Kxf7 {[%clk 0:02:12]} 24. gxf3 {[%clk 0:00:52]}  Nd3 {[%clk 0:02:11]} 25. Re2 {[%clk 0:00:50]}  g6 {[%clk 0:02:09]} 26. Ne3 {[%clk 0:00:48]}  Nf4 {[%clk 0:02:08]} 27. Ree1 {[%clk 0:00:43]}  Nxh3+ {[%clk 0:02:07]} 28. Kg2 {[%clk 0:00:43]}  Nf4+ {[%clk 0:02:08]} 29. Bxf4 {[%clk 0:00:42]}  exf4 {[%clk 0:02:07]} 30. Nc4 {[%clk 0:00:43]}  Nd5 {[%clk 0:02:00]} 31. Ne5+ {[%clk 0:00:41]}  Kg7 {[%clk 0:01:57]} 32. Nc6 {[%clk 0:00:42]}  Rxe1 {[%clk 0:01:53]} 33. Rxe1 {[%clk 0:00:42]}  Rd7 {[%clk 0:01:52]} 34. Re8 {[%clk 0:00:40]}  Nc7 {[%clk 0:01:49]} 35. Ne5 {[%clk 0:00:13]}  Re7 {[%clk 0:01:38]} 36. Rxe7+ {[%clk 0:00:11]}  Bxe7 {[%clk 0:01:38]} 37. Nc6 {[%clk 0:00:11]}  Bf6 {[%clk 0:01:37]} 38. Nxa7 {[%clk 0:00:08]}  Nxa6 {[%clk 0:01:38]} 39. Nc8 {[%clk 0:00:08]}  b5 {[%clk 0:01:38]} 40. Nd6 {[%clk 0:00:09]}  b4 {[%clk 0:01:38]} 41. cxb4 {[%clk 0:00:09]}  Nxb4 {[%clk 0:01:37]} 42. b3 {[%clk 0:00:09]}  Be7 {[%clk 0:01:34]} 43. Nc4 {[%clk 0:00:08]}  Kf6 {[%clk 0:01:34]} 44. Kh3 {[%clk 0:00:08]}  Kf5 {[%clk 0:01:34]} 45. Nd2 {[%clk 0:00:06]}  Nd3 {[%clk 0:01:34]} 46. Ne4 {[%clk 0:00:05]}  Ne1 {[%clk 0:01:34]} 47. Nd2 {[%clk 0:00:01]}  Bb4 {[%clk 0:01:34]} 48. Nc4 {[%clk 0:00:01]}  Nxf3 {[%clk 0:01:33]} 49. Kg2 {[%clk 0:00:02]}  Nd4 {[%clk 0:01:33]} 50. Nb6 {[%clk 0:00:02]}  Nxb3 {[%clk 0:01:32]} 51. Nd5 {[%clk 0:00:02]}  Bd6 {[%clk 0:01:33]} 52. Nc3 {[%clk 0:00:01]}  Nd4 {[%clk 0:01:32]} 0-1


[Site "https://www.chess.com"]

[Event "Titled Tuesday Blitz June 6 Late 2023"]
[White "Filgueira, Hernan"]
[Black "Mendez Fortes, Eduardo Jesus"]
[WhiteFideId "101770"]
[BlackFideId "3502376"]
[WhiteElo "2363"]
[BlackElo "2307"]
[Result "1-0"]
[Round "10"]
[TimeControl "180+2"]
[Date "2023.06.07"]
[WhiteClock "0:01:06"]
[BlackClock "0:00:12"]
[Board "53"]

1. c4 {[%clk 0:02:59]}  e6 {[%clk 0:02:59]} 2. Nf3 {[%clk 0:02:58]}  Nf6 {[%clk 0:02:59]} 3. g3 {[%clk 0:02:58]}  d5 {[%clk 0:02:59]} 4. Bg2 {[%clk 0:02:58]}  dxc4 {[%clk 0:02:57]} 5. Qa4+ {[%clk 0:02:57]}  Bd7 {[%clk 0:02:57]} 6. Qxc4 {[%clk 0:02:57]}  Bc6 {[%clk 0:02:55]} 7. O-O {[%clk 0:02:56]}  Bd6 {[%clk 0:02:50]} 8. b3 {[%clk 0:02:54]}  O-O {[%clk 0:02:49]} 9. Bb2 {[%clk 0:02:54]}  Nbd7 {[%clk 0:02:50]} 10. d3 {[%clk 0:02:53]}  Bd5 {[%clk 0:02:37]} 11. Qc2 {[%clk 0:02:52]}  e5 {[%clk 0:02:28]} 12. Nbd2 {[%clk 0:02:50]}  c5 {[%clk 0:02:21]} 13. Nc4 {[%clk 0:02:45]}  Qe7 {[%clk 0:02:18]} 14. e4 {[%clk 0:02:34]}  Bc6 {[%clk 0:02:15]} 15. Nh4 {[%clk 0:02:33]}  g6 {[%clk 0:02:12]} 16. Nxd6 {[%clk 0:02:31]}  Qxd6 {[%clk 0:02:11]} 17. f4 {[%clk 0:02:31]}  Nh5 {[%clk 0:01:40]} 18. f5 {[%clk 0:02:23]}  b6 {[%clk 0:01:31]} 19. Rf2 {[%clk 0:02:18]}  Rad8 {[%clk 0:01:27]} 20. Rd1 {[%clk 0:02:17]}  g5 {[%clk 0:01:15]} 21. Nf3 {[%clk 0:02:13]}  f6 {[%clk 0:01:15]} 22. Qe2 {[%clk 0:02:08]}  Ng7 {[%clk 0:01:14]} 23. h4 {[%clk 0:02:07]}  g4 {[%clk 0:01:12]} 24. Nd2 {[%clk 0:02:03]}  h5 {[%clk 0:01:11]} 25. Nc4 {[%clk 0:02:03]}  Qe7 {[%clk 0:01:11]} 26. Ne3 {[%clk 0:02:02]}  Nb8 {[%clk 0:01:09]} 27. Nxg4 {[%clk 0:01:58]}  hxg4 {[%clk 0:01:09]} 28. Qxg4 {[%clk 0:01:58]}  Qf7 {[%clk 0:01:01]} 29. Bf3 {[%clk 0:01:58]}  Kh7 {[%clk 0:01:00]} 30. h5 {[%clk 0:01:55]}  Ne8 {[%clk 0:00:51]} 31. Qh4 {[%clk 0:01:39]}  Nd6 {[%clk 0:00:45]} 32. g4 {[%clk 0:01:34]}  Nb5 {[%clk 0:00:42]} 33. Rdd2 {[%clk 0:01:29]}  Rg8 {[%clk 0:00:36]} 34. Rg2 {[%clk 0:01:28]}  Kh8 {[%clk 0:00:34]} 35. Bd1 {[%clk 0:01:24]}  Nd4 {[%clk 0:00:34]} 36. b4 {[%clk 0:01:18]}  Na6 {[%clk 0:00:22]} 37. Bxd4 {[%clk 0:01:15]}  Rxd4 {[%clk 0:00:18]} 38. Bb3 {[%clk 0:01:15]}  Qg7 {[%clk 0:00:15]} 39. Bxg8 {[%clk 0:01:14]}  Kxg8 {[%clk 0:00:16]} 40. g5 {[%clk 0:01:14]}  Qf7 {[%clk 0:00:13]} 41. gxf6+ {[%clk 0:01:14]}  Kh8 {[%clk 0:00:13]} 42. Qg5 {[%clk 0:01:06]}  c4 {[%clk 0:00:12]} 43. Qh6+ {[%clk 0:01:06]} 1-0


[Site "https://www.chess.com"]

[Event "Titled Tuesday Blitz June 6 Late 2023"]
[White "Mortazavi, Ali"]
[Black "QuiesPrecatio"]
[WhiteFideId "401323"]
[WhiteElo "2339"]
[BlackElo "2450"]
[Result "1-0"]
[Round "10"]
[TimeControl "180+2"]
[Date "2023.06.07"]
[WhiteClock "0:00:10"]
[BlackClock "0:00:06"]
[Board "55"]

1. Nf3 {[%clk 0:02:42]}  c5 {[%clk 0:02:59]} 2. g3 {[%clk 0:02:39]}  Nc6 {[%clk 0:02:58]} 3. Bg2 {[%clk 0:02:40]}  g6 {[%clk 0:02:58]} 4. O-O {[%clk 0:02:40]}  Bg7 {[%clk 0:02:59]} 5. d3 {[%clk 0:02:41]}  Nf6 {[%clk 0:02:58]} 6. e4 {[%clk 0:02:41]}  O-O {[%clk 0:02:58]} 7. c3 {[%clk 0:02:40]}  d6 {[%clk 0:02:51]} 8. h3 {[%clk 0:02:40]}  Rb8 {[%clk 0:02:50]} 9. a4 {[%clk 0:02:40]}  a6 {[%clk 0:02:46]} 10. Nbd2 {[%clk 0:02:41]}  b5 {[%clk 0:02:46]} 11. axb5 {[%clk 0:02:40]}  axb5 {[%clk 0:02:47]} 12. d4 {[%clk 0:02:41]}  Nd7 {[%clk 0:02:42]} 13. Re1 {[%clk 0:02:29]}  cxd4 {[%clk 0:02:37]} 14. cxd4 {[%clk 0:02:25]}  Nxd4 {[%clk 0:02:38]} 15. Nxd4 {[%clk 0:02:17]}  Bxd4 {[%clk 0:02:38]} 16. Nb3 {[%clk 0:02:17]}  Bg7 {[%clk 0:02:32]} 17. Na5 {[%clk 0:02:09]}  Ne5 {[%clk 0:02:23]} 18. Kh2 {[%clk 0:01:47]}  Bd7 {[%clk 0:02:17]} 19. Bg5 {[%clk 0:01:30]}  Nc4 {[%clk 0:02:07]} 20. Nb3 {[%clk 0:01:27]}  Nxb2 {[%clk 0:02:02]} 21. Qe2 {[%clk 0:01:26]}  Be6 {[%clk 0:01:58]} 22. Na5 {[%clk 0:01:20]}  Bd7 {[%clk 0:01:46]} 23. e5 {[%clk 0:01:19]}  Bxe5 {[%clk 0:01:09]} 24. f4 {[%clk 0:01:12]}  Bg7 {[%clk 0:01:06]} 25. Bxe7 {[%clk 0:01:10]}  Qb6 {[%clk 0:00:59]} 26. Bxf8 {[%clk 0:01:07]}  Rxf8 {[%clk 0:01:00]} 27. Ra2 {[%clk 0:00:52]}  Na4 {[%clk 0:00:58]} 28. Nb7 {[%clk 0:00:45]}  Nc3 {[%clk 0:00:56]} 29. Qc2 {[%clk 0:00:40]}  Nxa2 {[%clk 0:00:55]} 30. Qxa2 {[%clk 0:00:41]}  Be6 {[%clk 0:00:54]} 31. Rxe6 {[%clk 0:00:38]}  fxe6 {[%clk 0:00:52]} 32. Qxe6+ {[%clk 0:00:38]}  Kh8 {[%clk 0:00:52]} 33. Nxd6 {[%clk 0:00:39]}  Qc7 {[%clk 0:00:35]} 34. Nxb5 {[%clk 0:00:31]}  Qf7 {[%clk 0:00:29]} 35. Qe3 {[%clk 0:00:29]}  Re8 {[%clk 0:00:25]} 36. Qd3 {[%clk 0:00:26]}  Qe7 {[%clk 0:00:23]} 37. Nd6 {[%clk 0:00:21]}  Rf8 {[%clk 0:00:23]} 38. h4 {[%clk 0:00:20]}  Qe6 {[%clk 0:00:20]} 39. Ne4 {[%clk 0:00:19]}  h6 {[%clk 0:00:18]} 40. Bh3 {[%clk 0:00:16]}  Qb6 {[%clk 0:00:16]} 41. h5 {[%clk 0:00:15]}  Rd8 {[%clk 0:00:16]} 42. Qc2 {[%clk 0:00:13]}  gxh5 {[%clk 0:00:12]} 43. Bg2 {[%clk 0:00:12]}  Qb2 {[%clk 0:00:11]} 44. Qc7 {[%clk 0:00:10]}  Rg8 {[%clk 0:00:10]} 45. Nd6 {[%clk 0:00:10]}  Qf6 {[%clk 0:00:05]} 46. Nf7+ {[%clk 0:00:10]}  Kh7 {[%clk 0:00:06]} 47. Be4+ {[%clk 0:00:10]} 1-0


[Site "https://www.chess.com"]